Cogmind - Beta 15 @@@ ROGUE MODE // 2025.05.13 @ 01:38:41 Player: Darcyisverycute Result: Destroyed by Q5-OXE(R) with Subdweller Machine Gun Performance ------------- Evolutions (0) 0 Regions Visited (2) 400 Robots Destroyed (17) 85 Value Destroyed (431) 431 Prototype IDs (0) 0 Alien Tech Used (0) 0 Bonus (0) 0 TOTAL SCORE: 916 Bonus ------- None Cogmind --------- Core Integrity 0/250 Matter 300/300 Energy 248/250 System Corruption 0% Temperature Cool (1) Movement Treading (160) Location -10/Subcaves Parts ------- > --- POWER (1) -------- Ion Engine > --- PROPULSION (2) --- Light Treads > --- UTILITY (2) ------ Small Storage Unit Hardened Light Armor Plating > --- WEAPON (2) ------- Small Laser Light Assault Rifle > --- INVENTORY (8) ---- Light Treads Light Treads High-capacity Matter Pod (200) Hardened Light Armor Plating Hardened Light Armor Plating Assault Rifle Subdweller Shrapnel Launcher Mining Laser Peak State ------------ > --- POWER ------------ Ion Engine > --- PROPULSION ------- Light Treads Light Treads > --- UTILITY ---------- Small Storage Unit Improved Terrain Scanner > --- WEAPON ----------- Medium Laser Assault Rifle > --- INVENTORY -------- Ion Engine Light Assault Rifle Mining Laser [Rating: 9] Favorites ----------- Power Ion Engine Engine Ion Engine Propulsion Light Treads Treads Light Treads Leg Aluminum Leg Utility Small Storage Unit Device Improved Terrain Scanner Storage Small Storage Unit Protection Hardened Light Armor Plating Weapon Light Assault Rifle Energy Gun Medium Laser Ballistic Gun Light Assault Rifle Build | -11 -10 -10 ------- Run | Yrd Mat Sub Slots Evolved . | . . . Power . | . . . Propulsion . | . . . Utility . | . . . Weapon . | . . . Parts Attached 17 | 7 9 1 Power 2 | 1 1 . Engine 2 | 1 1 . Core . | . . . Reactor . | . . . Propulsion 7 | 2 5 . Treads 4 | 2 2 . Leg 3 | . 3 . Wheel . | . . . Hover . | . . . Flight . | . . . Utility 3 | 2 1 . Device 1 | 1 . . Storage 1 | 1 . . Processor . | . . . Hackware . | . . . Protection 1 | . 1 . Artifact . | . . . Weapon 5 | 2 2 1 Energy Gun 2 | 1 . 1 Energy Cannon . | . . . Ballistic Gun 3 | 1 2 . Ballistic Cannon . | . . . Launcher . | . . . Special Weapon . | . . . Impact Weapon . | . . . Slashing Weapon . | . . . Piercing Weapon . | . . . Special Melee Weapon . | . . . Unidentified Prototypes . | . . . Parts Lost 4 | . 2 2 Power . | . . . Propulsion 3 | . 2 1 Utility . | . . . Weapon 1 | . . 1 Highest Loss Streak 2 | . 1 2 To Critical Strikes . | . . . Average Backups 5 | 2 5 7 Power . | . . . Propulsion . | . . 2 Utility 1 | . 1 3 Weapon 2 | 1 2 2 Tool/Special . | . . . Unused Backups 8 | . 2 6 Power . | . . . Propulsion 2 | . . 2 Utility 5 | . 2 3 Weapon 1 | . . 1 Tool/Special . | . . . Average Slot Usage (%) 87 | . 85 96 Engine 13 | . 13 14 Treads 17 | . 15 25 Leg 8 | . 11 . Device 2 | . 2 . Storage 14 | . 14 14 Protection 7 | . 5 14 Energy Gun 2 | . 2 2 Ballistic Gun 19 | . 18 24 Peak Build Rating 9 | 9 9 9 Average Rating 7 | 6 6 8 On Entrance 6 | . 9 9 Naked Turns . | . . . Heaviest Build 17 | 15 17 17 Greatest Support 40 | 40 40 40 Greatest Overweight (x) 5 | . 5 . Average Overweight (x) . | . . . Largest Inventory Capacity 8 | 8 8 8 Average Capacity 7 | 7 8 8 Most Carried 8 | 3 8 8 Average Carried 5 | 2 5 7 Final Capacity 8 | 8 8 8 Final Carried 8 | 3 8 8 Class Distribution -------------------- 100% | Mutant Dominant Class ---------------- Mutant | -10/Materials Mutant | -10/Subcaves Resources | -11 -10 -10 ----------- Run | Yrd Mat Sub Matter Collected 792 | 284 458 50 Remotely . | . . . Salvage Created 638 | 42 491 105 Parts 37 | 8 20 9 Haulers Intercepted 1 | . 1 . Recyclers Shooed 3 | 1 2 . Parts Field Recycled . | . . . Retrieved Matter . | . . . Parts Self-Destructed . | . . . Prevented . | . . . Kills | -11 -10 -10 ------- Run | Yrd Mat Sub Combat Hostiles Destroyed 12 | . 9 3 Guns 11 | . 8 3 Classes Destroyed 7 | 1 5 1 Builder 1 | . 1 . Tunneler 2 | 2 . . Hauler 1 | . 1 . Recycler 1 | . 1 . Swarmer 2 | . 2 . Grunt 7 | . 7 . Subdweller 3 | . . 3 Best Kill Streak 4 | 1 4 3 Combat Bots Only 4 | . 4 3 Max Kills in Single Turn 1 | 1 1 1 Gunslinging . | . . . Exploded . | . . . Melee . | . . . Uniques/NPCs Destroyed . | . . . Combat | -11 -10 -10 -------- Run | Yrd Mat Sub Hostile Shots Fired 88 | . 61 27 Missed 22 | . 17 5 Hits 66 | . 44 22 Projectile 66 | . 44 22 AOE 2 | . . 2 Critical Strikes 1 | . 1 . Damage Taken 1133 | . 559 574 Core 263 | . 124 139 Absorbed by Shields . | . . . Core Remaining (%) 100 | 100 . . Volleys Fired 96 | 8 70 18 Largest 2 | 2 2 2 Hottest 70 | 70 70 60 Shots Fired 152 | 16 101 35 Gun 152 | 16 101 35 Cannon . | . . . Launcher . | . . . Special . | . . . Kinetic 119 | 8 81 30 Thermal 33 | 8 20 5 Explosive . | . . . Electromagnetic . | . . . Robot Hit Streak 18 | 2 10 18 Robot Miss Streak 3 | 1 3 1 Penetration Max . | . . . Secondary Targets 1 | . . 1 Max Gunslinging Chain 1 | . . 1 Shots Hit Robots 107 | 10 64 33 Core Hits 39 | 3 26 10 Critical Kills 1 | . 1 . Critical Parts Destroyed 1 | . . 1 Critical Strikes 6 | . 4 2 Burn 3 | . 3 . Destroy 3 | . 1 2 Melee Attacks . | . . . Impact . | . . . Slashing . | . . . Piercing . | . . . Sneak Attacks . | . . . Combat Hostiles . | . . . Follow-up Attacks . | . . . Damage Inflicted 1025 | 89 658 278 Guns 1025 | 89 658 278 Cannons . | . . . Explosions . | . . . Melee . | . . . Ramming . | . . . Kinetic 771 | 52 494 225 Thermal 254 | 37 164 53 Explosive . | . . . Electromagnetic . | . . . Impact . | . . . Slashing . | . . . Piercing . | . . . Highest Corruption . | . . . Average Corruption . | . . . Corruption Purged . | . . . Corruption Blocked . | . . . Overload Shots . | . . . Overflow Damage . | . . . Projectiles . | . . . Explosions . | . . . Melee . | . . . Knockbacks . | . . . Impact . | . . . Kinetic . | . . . Secondary . | . . . Self-Inflicted Damage . | . . . Shots . | . . . Rammed . | . . . Targets Rammed . | . . . Kicked . | . . . Crushed . | . . . Highest Temperature 234 | 18 234 4 Average Temperature 60 | 7 70 4 Received Heat Transfer 453 | . 306 147 Siege Activations . | . . . Martial Activations . | . . . Shielding Activations . | . . . Robots Disrupted . | . . . Combat Hostiles . | . . . Robots Corrupted . | . . . Combat Hostiles . | . . . Parts Fried . | . . . Impact Corruptions . | . . . Robots Melted 1 | . 1 . Combat Hostiles 1 | . 1 . Parts Melted 3 | . 1 2 Heat Transferred 939 | 111 703 125 Parts Sabotaged . | . . . Parts Stolen . | . . . Parts Stripped . | . . . Power Chain Reactions . | . . . Alert | -11 -10 -10 ------- Run | Yrd Mat Sub Maximum Alert Level . | . . . Low Security (%) 100 | 100 100 . Level 1 . | . . . Level 2 . | . . . Level 3 . | . . . Level 4 . | . . . Level 5 . | . . . High Security . | . . . Max Security . | . . . Peak Influence 99 | 5 99 . Initial . | . . . Average 23 | . 29 . Influence Increases 302 | 10 292 . Destroy 0b10 Robot/C 180 | . 180 . Destroy 0b10 Robot/NC 25 | 10 15 . Destroy Leader 52 | . 52 . Lose Combat Pursuer 45 | . 45 . Influence Decreases 302 | 10 225 67 Entered New Map 33 | . . 33 Time Decay 249 | 10 205 34 Lost Part 20 | . 20 . Squads Dispatched 3 | . 3 . Investigation 1 | . 1 . Extermination . | . . . Reinforcement 2 | . 2 . Assault . | . . . Garrison . | . . . Intercept . | . . . Searches Triggered . | . . . Construction Impeded . | . . . Haulers Reinforced . | . . . Active Scanning Responses . | . . . Cargo Convoy Interrupts . | . . . Stealth | -11 -10 -10 --------- Run | Yrd Mat Sub Distress Signals . | . . . Communications Jammed . | . . . Distress Signals . | . . . Times Spotted 26 | . 22 4 Peak Tracking Total 5 | . 5 3 Tactical Retreats 2 | . 2 . Traps | -11 -10 -10 ------- Run | Yrd Mat Sub Traps Triggered 4 | . 4 . Indirectly . | . . . Trap Hack Attempts . | . . . Triggered . | . . . Disarmed . | . . . Reprogrammed . | . . . Reused . | . . . Traps Extracted . | . . . Installed . | . . . Triggered . | . . . Machines | -11 -10 -10 ---------- Run | Yrd Mat Sub Machines Disabled . | . . . Max in Single Turn . | . . . Machines Repaired . | . . . Machines Dismantled . | . . . Machines Sabotaged . | . . . Overloaded Fab Kills . | . . . Hacking | -11 -10 -10 --------- Run | Yrd Mat Sub Machines Accessed . | . . . Terminals . | . . . Fabricators . | . . . Repair Stations . | . . . Recycling Units . | . . . Scanalyzers . | . . . Garrison Access . | . . . Total Hacks . | . . . Successful . | . . . Failed . | . . . Catastrophic . | . . . Database Lockouts . | . . . Manual . | . . . Terminals . | . . . Fabricators . | . . . Repair Stations . | . . . Recycling Units . | . . . Scanalyzers . | . . . Garrison Access . | . . . Terminal Hacks . | . . . Fabricator Hacks . | . . . Repair Station Hacks . | . . . Recycling Unit Hacks . | . . . Scanalyzer . | . . . Garrison Access Hacks . | . . . Unauthorized Hacks . | . . . Terminals . | . . . Fabricators . | . . . Repair Stations . | . . . Recycling Units . | . . . Scanalyzers . | . . . Garrison Access . | . . . Data Cores Recovered . | . . . Used . | . . . Hacking Detections . | . . . Full Trace Events . | . . . Feedback Events . | . . . Feedback Blocked . | . . . Robot Schematics Acquired . | . . . Robots Built . | . . . Authchips . | . . . Time . | . . . Total Robot Build Rating . | . . . Part Schematics Acquired . | . . . Parts Built . | . . . Authchips . | . . . Time . | . . . Total Part Build Rating . | . . . Parts Repaired . | . . . Time . | . . . Parts Recycled . | . . . Recycled Matter . | . . . Retrieved Matter . | . . . Retrieved Components . | . . . Parts Scanalyzed . | . . . Part Schematics Acquired . | . . . Parts Damaged . | . . . Bothacking | -11 -10 -10 ------------ Run | Yrd Mat Sub Used RIF Installer . | . . . Robots Hacked . | . . . Non-combat . | . . . Combat . | . . . Robot Hacks Applied . | . . . Relay Couplers Released . | . . . Fabnet Peak Effective % . | . . . Robots Rewired . | . . . Allies Hacked . | . . . Hacks Repelled . | . . . Allies | -11 -10 -10 -------- Run | Yrd Mat Sub Total Allies . | . . . Largest Group . | . . . Highest-Rated Group . | . . . Highest-Rated Ally . | . . . Total Orders . | . . . Ally Attacks . | . . . Total Damage . | . . . Kills . | . . . Allies Corrupted . | . . . Allies Melted . | . . . Intel | -11 -10 -10 ------- Run | Yrd Mat Sub Active Infowar (turns) 193 | 60 133 . Terrain 193 | 60 133 . Robot Analysis Total . | . . . Derelict Logs Recovered 1 | . . 1 Drone Launches . | . . . Drone Recoveries . | . . . Exploration | -11 -10 -10 ------------- Run | Yrd Mat Sub Turns Passed 1152 | 189 741 222 Spaces Moved 552 | 97 355 100 Core 4 | 2 2 . Treads 436 | 95 241 100 Legs 112 | . 112 . Wheels . | . . . Hover . | . . . Flight . | . . . Fastest Speed 50 | 50 120 160 Average Speed 152 | 157 149 160 Slowest Speed 300 | 160 300 160 Overloaded Moves . | . . . Propulsion Burnouts . | . . . Robots Hopped . | . . . Potential Cave-ins . | . . . Cave-ins Triggered . | . . . Exploration Rate (%) 27 | 6 67 8 Regions Visited 2 Branch Regions 1 Pre-discovered Areas 1 | . . 1 Known Exits Taken . | . . . Unknown Exits Taken 2 | 1 1 . Scrap Searched . | . . . Spaces Dug . | . . . Terrain Destroyed . | . . . Melee . | . . . Projectile . | . . . AOE . | . . . Terrain Rammed . | . . . Walls Destroyed . | . . . Machines Disabled . | . . . Actions | -11 -10 -10 --------- Run | Yrd Mat Sub Total 722 | 114 474 134 Wait 32 | . 18 14 Move 550 | 96 354 100 Hop . | . . . Pick Up 13 | 3 9 1 Fast Attach 17 | 7 10 . Attach 4 | . 3 1 Detach 4 | . 4 . Swap 1 | . 1 . Drop 5 | . 5 . Fire 96 | 8 70 18 Melee . | . . . Ram . | . . . Kick . | . . . Crush . | . . . Escape Stasis . | . . . Rewire . | . . . Trap . | . . . Miscellaneous . | . . . Route ------- -11/Scrapyard -10/Materials (discovered 3 exits: [*Mat x2] / [*Sub]) -10/Subcaves History --------- Turn | Location | Event 9 | -11/Scrapyard | Discovered new exit (range 13) 190 | -11/Scrapyard | Entered Materials 305 | -10/Materials | Build established: Mutant 520 | -10/Materials | Discovered new exit (range 14) 683 | -10/Materials | Discovered new exit (range 16) 925 | -10/Materials | Discovered new exit (range 5) 931 | -10/Materials | Entered Subcaves 932 | -10/Subcaves | Approached by a straggling Scientist 1035 | -10/Subcaves | Learned location of Zion (-7) 1035 | -10/Subcaves | Met a Zionite searching for "candidates" 1042 | -10/Subcaves | Learned Materials emergency access door positions 1086 | -10/Subcaves | Core integrity fell below 50% 1106 | -10/Subcaves | Core integrity fell below 20% 1153 | -10/Subcaves | Destroyed by Q5-OXE(R) with Subdweller Machine Gun Last Messages --------------- 01088_ PM-1WG(z) destroyed. 01092_ UX-XN4(R) suffers critical hit (Destroy). 01097_ Subatomizers dissect the Mak. Leg. 01109_ Lgt. Assault Rifle destroyed. 01112_ Disposable Heat Sink melted. 01112_ Sub. Optics melted. 01112_ UX-XN4(R) destroyed. 01112_ Switching to secondary target: WL-0VL(R). 01113_ Lgt. Treads destroyed. 01117_ WL-0VL(R) affixes Scrap Shield Fragment to Scrap Shield. 01118_ WL-0VL(R) destroyed. 01121_ Acquired 36 matter. 01121_ 9S-W68(c) destroyed. 01123_ Subatomizers dissect the Wheel. 01125_ Q4-9LZ(R) destroyed. 01133_ Acquired 14 matter. 01134_ Subatomizers dissect the Wheel. 01136_ Acquired Sub. Shrapnel Launcher. 01144_ Subatomizers dissect the Wheel. Map ----- +----------------------------------------------------+ | ?????????????????????????????????????????????????? | | ?????????????????????????????????????????????????? | | ?????????????????????????????????????????????????? | | ?????????????????????????????????????????????????? | | ?????????????????????????????????????????????????? | | ?????????????????????????????????????????????????? | | ?????????????????????????????????????????????????? | | ?????????????????????????????????????????????????? | | ?????????????????????????????????????????????????? | | ?????????????????????????????????????????????????? | | ?????????????????????????????????????????????????? | | ?????????????????????????????????????????????????? | | ?????????????????????????????????????????????????? | | ???????????????????????????????#?????????????????? | | ????????????????##??????????#?# ?????????????????? | | ???????????????" #????????? #?????????????????? | | ???????????????" ???????? #?????????????????? | | ???????????????# #???????? # #?????????????????? | | ???????????????" "#???????? ??????????????????? | | ???????????????#""#???????? ???????????????????? | | ?????????????###" ##?????? R ????????????????????? | | ????????????##" #?????? #?##?????????????????? | | ???????????##;; "##????? # ##????????????????? | | ???????????# ;"###### #????????????????? | | ???????????# ; # #????????????????? | | ???????????## %& @ #????????????????? | | ???????????# ;; ;;;## ?????????? | | ???????????#; ;;; * %""# ## ????????? | | ??????????### ## ] &&"## ???????????? | | ?????????## &"#?# "#??????????? | | ?????????# # # ""==&! "#?###### ""???????????? | | ?????????## ### " """#???????? "##???????????? | | ??????????# ##?# #""###??????????"????????????? | | ?????????## ### %=####?????????????????????????? | | ?????????# ######????????????????????????????? | | ?????????# ##???????????????????????????????? | | ?????????# ## #???????????????????????????????? | | ?????????# ## #???????????????????????????????? | | ?????????## #???????????????????????????????? | | ?????????## ## #???????????????????????????????? | | ?????????# # ##???????????????????????????????? | | ?????????# #????????????????????????????????? | | ?????????#### ##???????????????????????????????? | | ????????????### #???????????????????????????????? | | ????????????## #???????????????????????????????? | | ????????????# #???????????????????????????????? | | ????????????# ##??????????????????????????????? | | ????????????## #??????????????????????????????? | | ????????????# " #??????????????????????????????? | | ????????????# "" #??????????????????????????????? | +----------------------------------------------------+ Best States ------------- Heat Dissipation 25 Energy Generation 10 Energy Capacity 250 Matter Stores 300 Matter Capacity 300 Sight Range 16 Terrain Scan Range 16 Terrain Scan Density 10 Armor Coverage 150 Evasion (%) 55 Recoil Reduction 2 Item Schematics ----------------- None Robot Schematics ------------------ None Fabricated ------------ Nothing Repaired ---------- Nothing Alien Tech Used ----------------- None Achievements -------------- None Challenges ------------ None Game ------ Seed RegenerativeCouplerWheel Manual? 0 Play Time 00:07:22 Cumulative 182.6 hours Start 2025.05.13 @ 01:31:36 End 2025.05.13 @ 01:38:41 Sessions 1 Manual Loads 0 Difficulty Rogue Special Mode None Game No. 101 Rogue 93 Adventurer 8 Explorer 0 Win Type - Total 4 Types 2/0/1/1/0/0/0/0/0/0 Lore% 72 Gallery% 70 Achievement% 59 Wizard Run 0 Options --------- Layout 2 ASCII 0 Keyboard 1 Movement Numpad Keybinds 1 Fullscreen 1 Font 48/Smallcaps Map View 50x44 Zoom Use 0% Tactical HUD 1 Map Filters NONE Filters NONE Steam 1 RUN: 1c06ea30-bf78-433e-8f7f-f9d34a27bc7f